bitfinex-derivatives/quotes_ETHF0:USTF0_20250217
["timestamp","ask_amount","ask_price","bid_price","bid_amount"]
[1739832853533,3.2078,2738.3,2737.5,3.2078]
[1739832854237,3.2078,2738.3,2737.5,5.7828]
[1739832854440,3.2078,2738.6,2738.2,0.58424]
[1739832854639,3.2078,2738.6,2737.8,3.2078]
[1739832855544,5.7888,2738.6,2737.8,3.2078]
[1739832856043,5.7888,2738.6,2738.1,0.58426]
[1739832856437,5.7888,2738.6,2737.8,3.2078]
[1739832856637,5.7888,2738.6,2737.9,0.5843]
[1739832856833,5.7888,2738.6,2737.8,3.2078]
[1739832857039,3.2078,2738.0,2737.2,0.9]
[1739832857639,3.79212,2737.8,2737.2,0.9]
[1739832857843,2.6,2737.7,2737.2,0.9]
[1739832858037,3.2078,2737.8,2737.2,0.9]
[1739832858239,2.604,2737.9,2737.2,0.9]
[1739832858240,2.604,2737.9,2737.3,3.2078]
[1739832858549,3.2078,2738.1,2737.8,0.58432]
[1739832859045,3.2078,2738.1,2737.9,0.58429]
[1739832859438,3.2078,2738.1,2737.8,0.5843]
[1739832859652,3.2078,2738.1,2737.2,4.96612]
[1739832859838,3.2078,2738.1,2737.9,0.5843]
[1739832860047,3.2078,2738.1,2738.0,0.58428]
[1739832860749,3.2078,2738.1,2737.5,3.2078]
[1739832860950,3.2078,2738.1,2738.0,0.58428]
[1739832861251,3.2078,2738.1,2737.2,0.9]
[1739832861446,3.2078,2737.5,2737.2,0.9]
[1739832861643,4.53046442,2737.3,2737.2,0.9]
[1739832861841,3.94603442,2737.3,2735.8,3.65773537]
[1739832862041,3.2078,2736.7,2735.8,3.65773537]
[1739832862442,0.00547535,2736.5,2735.8,3.2078]
[1739832862748,0.00547535,2736.5,2736.3,0.58463]
[1739832862949,0.00547535,2736.5,2736.4,0.58462]
[1739832863453,0.00547535,2736.5,2736.1,3.2078]
[1739832863654,0.00547535,2736.5,2736.3,0.58464]
[1739832863851,0.00547535,2736.5,2736.1,3.2078]
[1739832864055,0.00547535,2736.5,2736.4,0.58462]
[1739832864257,0.00547535,2736.5,2736.1,3.2078]
[1739832864956,0.00547535,2736.5,2735.6,3.94603442]
[1739832864957,2.629,2736.4,2735.8,0.58473]
[1739832865249,2.629,2736.4,2736.1,0.58468]
[1739832865454,2.629,2736.4,2736.2,0.58465]
[1739832865649,0.00547535,2736.5,2736.4,0.58462]
[1739832865843,0.00547535,2736.5,2736.0,3.2078]
[1739832866046,0.00547535,2736.5,2736.4,0.58462]
[1739832866558,0.00547535,2736.5,2736.2,0.58465]
[1739832866759,0.00547535,2736.5,2736.3,0.58464]
[1739832867252,0.00547535,2736.5,2736.1,0.5823]
[1739832867452,0.00547535,2736.5,2733.4,1.59849507]
[1739832867453,3.2078,2736.3,2735.5,0.99321462]
[1739832867650,8.65747535,2736.5,2734.7,3.2078]
[1739832867651,3.79259,2735.6,2734.7,3.2078]
[1739832867845,2.662,2735.5,2734.7,3.2078]
[1739832868050,5.8938,2735.4,2734.7,3.2078]
[1739832868247,2.686,2735.4,2734.7,3.2078]
[1739832868549,2.686,2735.4,2733.4,3.2078]
[1739832868550,0.58499,2734.7,2733.4,3.2078]
[1739832868759,3.2078,2734.4,2733.5,0.58524]
[1739832868957,3.2078,2734.4,2733.7,3.79298]
[1739832869253,0.00548566,2734.3,2733.9,0.58514]
[1739832869459,0.00548566,2734.3,2734.0,3.2078]
[1739832869754,0.00548566,2734.3,2734.2,0.58509]
[1739832869954,3.2078,2735.0,2734.2,8.721]
[1739832870257,3.2078,2735.4,2734.8,0.58496]
[1739832870457,3.2078,2735.4,2734.9,0.58492]
[1739832870753,3.2078,2735.4,2735.1,0.58489]
[1739832871054,3.2078,2735.4,2734.9,3.2078]
[1739832871249,0.00548566,2735.5,2735.3,0.58486]
[1739832871654,0.00548566,2735.5,2735.4,0.58483]
[1739832872051,3.2078,2736.1,2735.7,0.58476]
[1739832872252,3.2078,2736.1,2735.3,3.2078]
[1739832872455,3.2078,2736.1,2735.8,0.58474]
[1739832872658,5.9378,2736.4,2735.9,0.58471]
[1739832872952,3.2078,2736.4,2736.0,0.58471]
[1739832873159,0.00548566,2736.3,2735.7,3.2078]
[1739832873459,3.2078,2735.8,2735.0,0.00548566]
[1739832873658,3.94603442,2735.4,2735.0,0.00548566]
[1739832873858,3.2078,2735.2,2733.7,0.5598]
[1739832874054,3.2078,2734.5,2733.4,3.2078]
[1739832874251,3.94603442,2734.3,2733.4,3.2078]
[1739832874447,3.2078,2734.2,2733.4,3.2078]
[1739832874659,3.2078,2734.2,2733.4,3.79306]
[1739832874849,3.2078,2734.2,2733.8,0.026986]
[1739832875160,0.00548566,2734.1,2733.8,0.026986]
[1739832875856,0.00548566,2734.1,2733.9,0.026986]
[1739832876258,0.00548566,2734.1,2734.0,0.58513]
[1739832876759,2.794,2734.8,2734.0,0.57081455]
[1739832876953,2.794,2734.8,2734.0,0.026986]
[1739832877456,2.794,2734.8,2734.0,0.612096]
[1739832877662,2.794,2734.8,2734.0,0.026986]
[1739832877851,2.794,2734.8,2734.4,0.026986]
[1739832877852,3.21328566,2734.7,2734.4,0.026986]
[1739832878156,0.00548566,2734.7,2734.4,0.026986]
[1739832878546,0.00548566,2734.7,2734.6,0.58501]
[1739832878950,0.00548566,2734.7,2734.6,0.611996]
[1739832879151,0.00548566,2734.7,2734.6,0.026986]
[1739832880355,0.00548566,2734.7,2734.6,0.611996]
[1739832882353,0.00548566,2734.7,2734.6,0.026986]
[1739832885758,0.00548566,2734.7,2734.6,0.611996]
[1739832886463,0.00548566,2734.7,2734.6,1.15816049]
[1739832887765,0.00548566,2734.7,2734.6,1.60860771]
[1739832889757,5.9558,2735.7,2734.6,10.23431828]
[1739832889957,5.9558,2735.7,2735.1,0.026986]
[1739832890171,5.9558,2735.7,2735.2,0.54616449]
[1739832890362,5.9558,2735.7,2735.4,0.58483]
[1739832890561,5.9558,2735.7,2735.5,0.54616449]
[1739832890764,5.9558,2735.7,2735.6,0.54616449]
[1739832890963,5.9558,2735.7,2735.6,0.57315049]
[1739832891966,3.2078,2735.7,2735.6,0.57315049]
[1739832892467,3.2078,2735.7,2735.6,1.02557204]
[1739832892667,3.2078,2735.7,2735.6,1.61036204]
[1739832893065,0.00548566,2735.9,2735.8,0.58475]
[1739832893267,0.00548566,2735.9,2735.8,1.13372793]
[1739832893866,2.741,2736.6,2735.8,2.01085793]
[1739832894169,2.741,2736.6,2736.2,0.026986]
[1739832894372,2.741,2736.6,2736.3,0.54912696]
[1739832894562,2.741,2736.6,2736.4,0.54912696]
[1739832894868,3.2078,2736.7,2736.5,0.54912696]
[1739832895065,3.2078,2736.7,2736.6,1.02853451]
[1739832895958,3.79236,2736.7,2736.6,1.02849375]
[1739832896157,3.79236,2736.7,2736.6,0.47940755]
[1739832896368,3.79236,2736.7,2736.6,1.02851805]
[1739832896761,0.00548566,2736.8,2736.6,0.5760965]
[1739832896968,0.00548566,2736.8,2736.7,1.1336705]
[1739832897262,0.00548566,2736.8,2736.7,1.61290677]
[1739832897859,0.00548566,2736.8,2736.7,1.61272477]
[1739832898659,0.00548566,2736.8,2736.7,4.82052477]
[1739832898867,3.2078,2737.2,2737.1,0.58447]
[1739832899067,3.2078,2737.2,2737.1,1.1603845]
[1739832900264,0.00548566,2737.4,2737.3,0.58443]
[1739832900569,0.00548566,2737.4,2737.3,1.1333585]
[1739832901269,0.00548566,2737.4,2737.3,1.1603445]
[1739832901471,3.2078,2737.9,2737.3,0.57492709]
[1739832901673,3.2078,2738.2,2737.8,0.58431]
[1739832902165,3.2078,2738.2,2738.0,0.026986]
[1739832903163,3.2078,2738.2,2738.1,0.026986]
[1739832904967,0.56919879,2738.4,2738.1,0.611246]
[1739832905160,0.56919879,2738.4,2738.2,0.026986]
[1739832906168,0.56919879,2738.4,2738.3,0.026986]
[1739832907076,0.00359879,2738.4,2738.3,0.026986]
[1739832908066,0.00359879,2738.4,2738.3,0.611196]
[1739832908266,0.00359879,2738.4,2738.3,0.026986]
[1739832910678,0.00359879,2738.4,2737.7,0.58434]
[1739832910679,0.58423,2738.3,2737.7,0.58434]
[1739832910872,3.2078,2738.2,2737.5,3.2078]
[1739832911075,0.00359879,2738.4,2737.5,3.2078]
[1739832911377,0.00359879,2738.4,2737.9,0.58428]
[1739832911579,0.58425,2738.2,2737.5,3.2078]
[1739832911876,0.58423,2738.3,2737.5,3.2078]
[1739832912078,0.58425,2738.2,2737.5,3.2078]
[1739832912280,0.58422,2738.3,2737.8,0.58431]
[1739832912468,3.2078,2738.3,2737.5,3.2078]
[1739832912873,0.58424,2738.2,2737.5,3.2078]
[1739832913073,3.2078,2738.3,2737.5,3.2078]
[1739832913270,3.79202,2738.3,2737.5,3.2078]
[1739832913474,3.2078,2738.3,2737.5,3.2078]
[1739832913776,3.2078,2738.3,2738.2,0.58424]
[1739832914271,3.2078,2738.3,2737.8,3.2078]
[1739832914473,3.2078,2738.3,2737.9,0.58429]
[1739832914782,3.2078,2738.3,2737.5,3.94852563]
[1739832914974,3.2078,2738.3,2738.0,0.58427]
[1739832915280,3.2078,2738.3,2737.9,0.58429]
[1739832915581,3.2078,2738.3,2738.1,0.58426]
[1739832916074,0.00359879,2738.4,2737.7,3.2078]
[1739832916977,0.00359879,2738.4,2738.2,0.58423]
[1739832917974,0.00359879,2738.4,2737.7,3.2078]
[1739832918175,0.00359879,2738.4,2738.2,0.58422]
[1739832918983,0.00359879,2738.4,2738.3,0.58421]
[1739832921384,0.00359879,2738.4,2738.2,0.58423]
[1739832922376,0.00359879,2738.4,2738.3,0.58421]
[1739832922576,0.00359879,2738.4,2738.2,0.58423]
[1739832923087,0.00359879,2738.4,2738.3,0.54869785]
[1739832923388,0.00359879,2738.4,2738.3,1.13290799]
[1739832923685,0.00359879,2738.4,2738.3,1.13348236]
[1739832924384,0.00359879,2738.4,2738.3,1.58583591]
[1739832926188,0.00359879,2738.4,2738.3,1.58655668]
[1739832926589,0.00359879,2738.4,2738.3,4.79435668]
[1739832927681,0.00359879,2738.4,2738.3,4.7951739]
[1739832929793,0.00359879,2738.4,2738.3,4.79587023]
[1739832931492,0.5733,2738.9,2738.3,4.79587023]
[1739832931692,0.5733,2738.9,2738.7,0.58411]
[1739832931993,0.5733,2738.9,2738.8,0.55164643]
[1739832932390,0.5733,2738.9,2738.8,1.00399998]
[1739832933698,0.5733,2738.9,2738.8,1.00408625]
[1739832933892,3.24304,2739.1,2738.8,1.00408625]
[1739832933893,2.659,2739.1,2738.8,1.00408625]
[1739832934092,2.659,2739.1,2738.9,0.5517327]
[1739832934299,2.659,2739.1,2739.0,0.55171853]
[1739832934594,3.24305,2739.1,2739.0,0.55171853]
[1739832934794,3.24305,2739.1,2739.0,1.00407208]
[1739832936294,2.659,2739.1,2739.0,1.00407208]
[1739832937187,6.43282,2739.2,2739.0,1.00407208]
[1739832937392,3.2078,2739.2,2739.1,0.55171853]
[1739832937597,3.2078,2739.2,2739.1,1.13575853]
[1739832938092,3.2078,2739.2,2739.1,1.58811208]
[1739832939595,3.69972314,2739.7,2739.1,1.00407208]
[1739832939792,3.69972314,2739.7,2739.2,0.55131203]
[1739832940095,6.33772314,2739.7,2739.4,0.58398]
[1739832940301,6.33772314,2739.7,2739.5,0.55131203]
[1739832940600,6.33772314,2739.7,2739.6,0.55116058]
[1739832941096,3.69972314,2739.7,2739.6,0.55116058]
[1739832942197,3.69972314,2739.7,2739.6,0.45323793]
[1739832942398,3.69972314,2739.7,2739.6,1.00425979]
[1739832942594,0.5529,2739.7,2739.6,1.00425979]
[1739832942794,0.5529,2739.7,2739.6,0.55102186]
[1739832943794,0.5529,2739.7,2739.6,0.55102863]
[1739832943997,17.08069464,2739.8,2739.7,0.58392]
[1739832944300,17.08069464,2739.8,2739.7,1.13494863]
[1739832945102,17.08069464,2739.8,2739.7,1.588116]
[1739832946599,3.2078,2739.8,2739.7,1.588116]
[1739832946902,3.7022,2740.0,2739.7,1.588096]
[1739832947203,3.162,2740.0,2739.8,0.55102863]
[1739832947395,0.537,2740.0,2739.9,1.13489863]
[1739832947590,5.8248,2740.4,2740.0,0.58384]
[1739832947801,6.3901,2740.4,2740.1,1.13485863]
[1739832948002,6.3901,2740.4,2740.2,0.55102863]
[1739832948197,3.7731,2740.4,2740.1,0.58383]
[1739832951202,3.7731,2740.4,2740.3,0.58379]
[1739832951900,15.47165015,2740.5,2740.4,0.58377]
[1739832952105,15.47165015,2740.5,2740.4,1.13337465]
[1739832953308,15.47165015,2740.5,2740.4,1.1330436]
[1739832953504,15.47165015,2740.5,2740.4,1.58500409]
[1739832954402,13.98907691,2740.9,2740.8,0.58368]
[1739832956109,13.98907691,2740.9,2740.6,0.5716]
[1739832956310,13.98907691,2740.9,2740.6,3.1746]
[1739832956506,13.98907691,2740.9,2740.8,0.58368]
[1739832957303,13.98907691,2740.9,2740.6,0.5716]
[1739832957505,13.98907691,2740.9,2740.6,3.1706]
[1739832958606,13.98907691,2740.9,2740.6,3.75432]
[1739832959411,13.98907691,2740.9,2740.6,3.1706]
[1739832961010,13.98907691,2740.9,2740.6,3.75432]
[1739832962015,13.98907691,2740.9,2740.6,1.15532]
[1739832962215,13.98907691,2740.9,2740.7,0.5837]
[1739832963003,13.98907691,2740.9,2740.6,1.15532]
[1739832963206,13.98907691,2740.9,2740.6,0.5716]
[1739832963406,13.98907691,2740.9,2740.6,1.15531]
[1739832963612,13.98907691,2740.9,2740.6,0.5716]
[1739832963812,13.98907691,2740.9,2740.7,0.58369]
[1739832964415,13.98907691,2740.9,2740.6,0.5716]
[1739832964617,13.98907691,2740.9,2740.6,3.71842314]
[1739832964814,13.98907691,2740.9,2740.8,0.58368]
[1739832965319,13.98907691,2740.9,2740.8,1.13236075]
[1739832965818,13.98907691,2740.9,2740.8,1.13235418]
[1739832966918,13.98907691,2740.9,2740.8,4.7914582]
[1739832967815,13.25599088,2740.9,2740.8,4.7914582]
[1739832968210,12.50939088,2740.9,2740.8,4.7914582]
[1739832968713,0.5434,2741.5,2741.2,0.58359]
[1739832970844,0.5434,2741.5,2741.3,0.58356]
[1739832971724,0.5434,2741.5,2741.2,3.2078]
[1739832971926,0.5434,2741.5,2741.4,0.58355]
[1739832972147,0.5434,2741.5,2741.4,1.13276547]
[1739832972424,12.07236848,2741.6,2741.5,0.58353]
[1739832972626,12.07236848,2741.6,2741.5,1.13274547]
[1739832973027,12.07236848,2741.6,2741.5,1.13287113]
[1739832973223,0.5684,2742.0,2741.5,3.75714113]
[1739832973430,0.5684,2742.0,2741.8,0.58347]
[1739832973825,0.5684,2742.0,2741.9,0.54939646]
[1739832975829,0.5684,2742.0,2741.9,0.54934951]
[1739832976222,0.5684,2742.0,2741.9,1.00110061]
[1739832976623,3.2078,2742.2,2742.0,0.58342]
[1739832977525,3.2078,2742.2,2741.7,0.58347]
[1739832977725,0.58342,2742.1,2741.8,0.54944916]
[1739832977924,0.58341,2742.1,2741.9,0.54944916]
[1739832978123,3.2078,2742.2,2742.0,0.549445]
[1739832978327,3.7912,2742.2,2741.8,0.58346]
[1739832978527,0.58341,2742.1,2741.9,1.0013201]
[1739832978729,3.2078,2742.2,2742.0,0.54946522]
[1739832978730,3.7912,2742.2,2742.0,0.54946522]
[1739832978929,3.7912,2742.2,2741.9,1.03530488]
[1739832979131,3.2078,2742.2,2742.0,0.54946538]
[1739832979332,3.7912,2742.2,2741.9,0.58345]
[1739832979524,3.7912,2742.2,2742.0,0.5495171]
[1739832979829,3.7912,2742.2,2741.9,0.58345]
[1739832980030,3.7912,2742.2,2742.0,0.5495175]
[1739832980230,3.79118,2742.2,2741.9,0.58345]
[1739832980431,3.2078,2742.2,2742.0,0.54961638]
[1739832980631,3.2078,2742.2,2741.6,2.556]
[1739832980835,3.2078,2742.2,2742.0,0.58341]
[1739832981228,3.2078,2742.2,2742.1,0.54982464]
[1739832981432,3.2078,2742.2,2742.1,0.5497618]
[1739832981933,3.79118,2742.2,2742.1,0.54976221]
[1739832982129,3.79118,2742.2,2742.1,0.54987534]
[1739832983429,3.79118,2742.2,2742.1,0.54980881]
[1739832984531,3.2078,2742.2,2742.1,0.54980881]
[1739832984836,3.79118,2742.2,2742.1,0.54980881]
[1739832985235,3.79118,2742.2,2742.0,0.58342]
[1739832986338,3.7912,2742.2,2742.1,0.54983768]
[1739832986534,3.2078,2742.2,2742.1,0.54983768]
[1739832986728,3.79118,2742.2,2742.1,0.54983768]
[1739832986931,3.79118,2742.2,2742.0,0.58341]
[1739832987128,3.79118,2742.2,2742.1,0.54989444]
[1739832987543,3.79118,2742.2,2742.0,0.58341]
[1739832987746,3.79118,2742.2,2742.1,0.54989494]
[1739832989441,3.79118,2742.2,2742.1,0.55007065]
[1739832991148,3.2078,2742.2,2742.1,1.13348065]
[1739832991554,0.5808,2742.4,2742.3,0.58336]
[1739832991755,0.5808,2742.4,2742.3,1.13341042]
[1739832992057,0.5808,2742.4,2742.3,1.00238941]
[1739832992252,1.16414,2742.4,2742.3,1.00238941]
[1739832992651,15.12591467,2742.4,2742.3,1.00238941]
[1739832993051,14.54257467,2742.4,2742.3,1.00238941]
[1739832993246,15.12591467,2742.4,2742.3,1.00238941]
[1739832993653,15.12591467,2742.4,2742.3,1.00280634]
[1739832998057,15.12591467,2742.4,2742.3,0.45233899]
[1739832998257,15.12591467,2742.4,2742.3,1.00348222]
[1739832999363,15.12591467,2742.4,2742.3,0.17013825]
[1739832999564,14.54257467,2742.4,2742.2,0.58338]
[1739832999762,0.58336,2742.3,2742.2,0.58338]
[1739833000465,15.12593467,2742.4,2742.2,0.58338]
[1739833000763,0.58338,2742.3,2742.0,2.524]
[1739833000965,0.58338,2742.3,2742.2,0.58338]
[1739833002564,14.54257467,2742.4,2742.1,0.5284]
[1739833002870,15.12592467,2742.4,2742.2,0.58337]
[1739833003065,14.54257467,2742.4,2742.2,0.58337]
[1739833003765,15.12593467,2742.4,2742.2,0.58337]
[1739833004059,14.54257467,2742.4,2742.1,0.5284]
[1739833004266,15.12591467,2742.4,2742.2,0.58338]
[1739833004464,14.54257467,2742.4,2742.3,0.58336]
[1739833005166,14.54257467,2742.4,2741.8,3.7554]
[1739833005370,0.58342,2742.1,2741.8,1.68507]
[1739833006263,0.58342,2742.1,2741.9,0.58345]
[1739833006866,3.7912,2742.2,2741.9,0.58345]
[1739833007969,3.2078,2742.2,2741.8,1.1016]
[1739833008272,3.2078,2742.2,2742.0,0.58341]
[1739833008775,3.79119,2742.2,2742.0,0.58341]
[1739833010668,3.2078,2742.2,2742.0,0.58341]
[1739833010869,3.79119,2742.2,2742.0,0.58341]
[1739833011267,3.79119,2742.2,2742.1,0.54928019]
[1739833011759,3.79119,2742.2,2742.1,0.99993251]
[1739833012462,3.79118,2742.2,2742.1,1.58334251]
[1739833013773,3.79118,2742.2,2742.1,0.27453197]
[1739833016476,3.2078,2742.2,2742.1,0.27453197]
[1739833018676,13.96177467,2742.4,2742.3,0.58336]
[1739833018873,13.30636119,2742.4,2742.3,5.19597988]
[1739833019580,13.30636119,2742.4,2742.3,11.19597988]
[1739833019769,9.92216119,2742.4,2742.3,5.19597988]
[1739833019973,5.86416119,2742.4,2742.3,5.19597988]
[1739833020667,5.86416119,2742.4,2742.3,3.79116]
[1739833021077,18.67945015,2743.3,2742.3,3.79116]
[1739833021078,18.67945015,2743.3,2742.4,1.45835]
[1739833021280,18.67945015,2743.3,2743.2,0.58317]
[1739833022580,3.2078,2743.3,2743.2,0.58317]
[1739833023581,0.5283,2743.6,2743.2,0.58317]
[1739833023781,0.5283,2743.6,2743.3,0.58315]
[1739833023977,19.8777596,2743.8,2743.3,2.478]
[1739833024282,19.8777596,2743.8,2743.5,0.58309]
[1739833024583,19.8777596,2743.8,2743.6,0.58308]
[1739833024777,19.8777596,2743.8,2743.5,0.5831]
[1739833025384,19.8777596,2743.8,2743.4,0.5267]
[1739833025576,19.8777596,2743.8,2743.4,3.58582]
[1739833025873,19.8777596,2743.8,2743.5,0.54274032]
[1739833026075,20.4352596,2743.8,2743.6,0.54273975]
[1739833026281,20.4352596,2743.8,2743.5,0.5831]
[1739833026475,3.7653,2743.8,2743.5,0.5831]
[1739833026676,3.7653,2743.8,2743.6,0.58308]
[1739833027077,3.7653,2743.8,2743.4,3.0027]
[1739833027277,3.7653,2743.8,2743.6,0.58309]
[1739833027476,3.7653,2743.8,2743.7,0.58307]
[1739833031189,3.2078,2743.8,2743.7,0.58307]
[1739833032078,1.1305,2744.1,2744.0,0.583]
[1739833034283,3.2078,2744.4,2743.8,2.462]
[1739833034487,3.2078,2744.4,2744.3,0.58294]
[1739833035080,3.2078,2744.4,2743.9,3.6708128]
[1739833035283,3.2078,2744.4,2744.2,0.58294]
[1739833035686,0.5829,2744.5,2744.3,0.58294]
[1739833035882,1.69509,2744.6,2743.9,6.8786128]
[1739833036082,1.69509,2744.6,2744.3,0.58293]
[1739833036688,1.69509,2744.6,2744.3,0.58292]
[1739833037578,0.58291,2744.5,2744.2,0.58294]
[1739833037884,0.58293,2744.4,2744.0,3.04099]
[1739833038190,3.2078,2744.4,2743.6,6.3454128]
[1739833038386,3.2078,2744.4,2743.7,2.461]
[1739833038580,0.583,2744.0,2743.7,0.58305]
[1739833038781,1.1289,2743.9,2743.3,6.3454128]
[1739833038985,0.58307,2743.7,2743.3,6.9285428]
[1739833039380,3.2078,2743.8,2743.2,0.58316]
[1739833039585,0.58312,2743.5,2743.1,0.58318]
[1739833039882,0.5484,2743.4,2743.3,0.58315]
[1739833040581,1.1042,2743.4,2743.3,0.58315]
[1739833040788,1.1042,2743.4,2743.1,0.58319]
[1739833040989,0.5731,2743.3,2743.0,0.58867555]
[1739833041680,0.5731,2743.3,2743.0,0.00547555]
[1739833041883,0.5731,2743.3,2743.1,0.58319]
[1739833043386,0.5731,2743.3,2743.0,0.00547555]
[1739833043587,0.5731,2743.3,2743.1,0.58318]
[1739833043887,0.5731,2743.3,2743.2,0.58317]
[1739833044297,0.5731,2743.3,2743.0,0.00547555]
[1739833044493,0.5731,2743.3,2743.1,1.1250144]
[1739833044689,0.5731,2743.3,2743.1,0.58317]
[1739833044991,0.5731,2743.3,2743.0,0.00547555]
[1739833044992,0.5731,2743.3,2743.2,0.58317]
[1739833045893,0.5731,2743.3,2743.0,0.00547555]
[1739833046100,0.5731,2743.3,2743.1,1.12534793]
[1739833046406,0.5731,2743.3,2743.1,0.58318]
[1739833047282,0.5731,2743.3,2743.2,0.5429451]
[1739833047689,0.5731,2743.3,2743.2,1.1261151]
[1739833048090,0.5731,2743.3,2743.2,0.5429451]
[1739833048690,0.5731,2743.3,2743.2,1.1261151]
[1739833048887,0.5731,2743.3,2743.2,0.5429451]
[1739833049092,1.15625,2743.3,2743.2,0.5429451]
[1739833049593,0.5731,2743.3,2743.2,0.54362802]
[1739833049789,1.15625,2743.3,2743.2,0.54362802]
[1739833051693,3.0231,2743.3,2743.0,0.00547555]
[1739833051894,4.66583,2743.1,2742.0,3.1376128]
[1739833052086,0.58333,2742.5,2742.2,0.58338]
[1739833052292,0.5257,2742.4,2742.2,0.58338]
[1739833052501,1.10905,2742.4,2742.1,0.5834]
[1739833053500,1.10905,2742.4,2742.2,0.58338]
[1739833053702,0.5834,2742.2,2742.0,0.00547555]
[1739833053895,0.58341,2742.1,2742.0,0.00547555]
[1739833054200,0.58349,2741.8,2741.3,0.58357]
[1739833054398,0.5835,2741.7,2741.2,3.2078]
[1739833054597,3.04249,2741.8,2741.2,3.79139]
[1739833054796,6.25029,2741.8,2741.3,0.58357]
[1739833054996,2.459,2741.8,2741.3,0.58356]
[1739833055299,3.04248,2741.8,2741.3,0.00547555]
[1739833055501,0.58349,2741.7,2741.3,0.00547555]
[1739833056299,2.459,2741.8,2741.3,0.00547555]
[1739833056599,3.04248,2741.8,2741.3,0.00547555]
[1739833057106,2.459,2741.8,2741.3,0.58903555]
[1739833057306,0.5835,2741.7,2741.3,0.00547555]
[1739833058401,5.6668,2741.8,2741.3,0.00547555]
[1739833058402,0.58354,2741.5,2741.3,0.00547555]
[1739833058598,6.25135,2741.4,2741.3,0.00547555]
[1739833059607,3.2078,2741.4,2741.3,0.00547555]
[1739833059902,5.6668,2741.4,2741.3,0.00547555]
[1739833060207,3.2078,2741.7,2741.3,0.00547555]
[1739833060395,0.5467,2742.0,2741.5,3.2078]
[1739833060599,0.5467,2742.0,2741.9,0.58345]
[1739833060994,0.5671,2742.3,2741.9,0.58345]
[1739833061394,0.5671,2742.3,2741.8,3.2078]
[1739833061809,0.5321,2742.4,2742.1,0.58339]
[1739833062005,0.5321,2742.4,2742.2,0.58338]
[1739833062200,0.00544184,2742.5,2742.3,0.58335]
[1739833062714,0.00544184,2742.5,2742.4,0.58334]
[1739833063807,0.00544184,2742.5,2742.4,3.79114]
[1739833065013,0.00544184,2742.5,2742.4,4.32731126]
[1739833065311,1.0569,2743.5,2743.1,0.58319]
[1739833066421,1.64002,2743.5,2743.0,0.00547555]
[1739833066618,1.0569,2743.5,2743.0,0.00547555]
[1739833067328,1.64001,2743.5,2743.0,0.00547555]
[1739833068429,0.58314,2743.4,2743.0,0.00547555]
[1739833068725,0.58314,2743.4,2743.0,0.58868555]
[1739833069121,0.58314,2743.4,2743.0,0.00547555]
[1739833069312,0.58315,2743.3,2743.0,0.00547555]
[1739833069521,1.0569,2743.5,2743.0,0.00547555]
[1739833069727,0.58314,2743.4,2743.0,0.58867555]
[1739833070924,1.0569,2743.5,2743.0,0.58867555]
[1739833071125,1.0569,2743.5,2743.0,0.00547555]
[1739833071126,0.58315,2743.3,2743.0,0.00547555]
[1739833071425,0.58315,2743.3,2743.0,0.58868555]
[1739833072423,0.00547555,2743.6,2743.5,0.58311]
[1739833072614,4.34826,2744.2,2743.5,3.2078]
[1739833072815,3.7653,2744.2,2743.7,0.58305]
[1739833073122,3.7653,2744.2,2743.2,3.1376128]
[1739833073321,3.7653,2744.2,2743.6,0.58307]
[1739833073716,0.58301,2744.0,2743.4,3.2078]
[1739833073923,3.7653,2744.2,2743.4,3.2078]
[1739833074123,3.7653,2744.2,2743.7,0.58305]
[1739833074426,0.58301,2744.0,2743.4,3.2078]
[1739833074621,0.58301,2744.0,2743.7,0.58306]
[1739833075530,6.2193,2744.2,2743.4,3.2078]
[1739833075721,0.583,2744.1,2743.7,0.58305]
[1739833076027,6.2193,2744.2,2743.4,3.2078]
[1739833076231,0.58301,2744.0,2743.4,3.2078]
[1739833076434,0.58301,2744.0,2743.7,0.58306]
[1739833076727,0.58301,2744.0,2743.4,3.2078]
[1739833077131,0.58301,2744.0,2743.7,0.58305]
[1739833078627,6.2193,2744.2,2743.5,0.5637]
[1739833078824,0.58307,2743.7,2743.4,0.58312]
[1739833079423,0.5756,2743.8,2743.1,1.137]
[1739833080029,1.15865,2743.8,2743.5,0.5831]
[1739833080632,1.15866,2743.8,2743.5,0.5831]
[1739833080824,0.58307,2743.7,2743.5,0.5831]
[1739833081132,0.5831,2743.6,2743.3,0.58314]
[1739833081430,1.16051,2743.5,2743.3,0.58314]
[1739833082021,1.16051,2743.5,2743.1,1.137]
[1739833082222,1.16051,2743.5,2743.3,0.58313]
[1739833082634,0.58313,2743.4,2743.2,0.58316]
[1739833083135,0.58314,2743.4,2743.0,0.00547555]
[1739833083327,4.36832,2743.5,2743.3,0.58315]
[1739833083520,4.36832,2743.5,2743.0,0.00547555]
[1739833083734,4.36832,2743.5,2743.3,0.58315]
[1739833084134,3.7852,2743.5,2743.0,0.00547555]
[1739833084433,0.58315,2743.3,2743.0,0.00547555]
[1739833084634,0.58315,2743.3,2743.1,0.58319]
[1739833085028,0.58315,2743.4,2743.1,0.58319]
[1739833085333,3.7852,2743.5,2743.1,0.58319]
[1739833085534,0.58315,2743.3,2743.0,0.58867555]
[1739833085930,0.5429,2743.2,2743.0,0.00547555]
[1739833086138,0.5429,2743.2,2743.1,0.58319]
[1739833086738,0.58319,2743.1,2743.0,0.00547555]
[1739833086938,1.12989,2743.1,2743.0,0.00547555]
[1739833088228,4.33388,2743.2,2743.0,0.58868555]
[1739833088433,3.7507,2743.2,2743.0,0.00547555]
[1739833088635,0.58319,2743.1,2743.0,0.00547555]
[1739833089239,6.8883128,2743.2,2742.3,1.0655]
[1739833089434,6.8883128,2743.2,2742.4,0.58334]
[1739833089435,0.58328,2742.8,2742.4,0.58334]
[1739833089634,0.58328,2742.7,2742.4,0.58334]
[1739833090231,0.58328,2742.7,2742.5,0.5392403]
[1739833090535,0.58333,2742.5,2742.3,0.00547555]